[Event "Titled Tuesday Blitz March 14 Late 2023"]
[White "Osmak, Yuliia"]
[Black "Cardoso Cardoso, Jose Gabriel"]
[WhiteFideId "14101602"]
[BlackFideId "4430492"]
[WhiteElo "2271"]
[BlackElo "2496"]
[Result "1/2-1/2"]
[Round "10"]
[TimeControl "180+2"]
[Date "2023.03.14"]
[WhiteClock "0:00:03"]
[BlackClock "0:00:04"]

1. d4 {[%clk 0:03:00]}  Nf6 {[%clk 0:02:59]} 2. Bf4 {[%clk 0:03:00]}  d5 {[%clk 0:02:58]} 3. e3 {[%clk 0:03:00]}  Bf5 {[%clk 0:02:59]} 4. c4 {[%clk 0:02:58]}  e6 {[%clk 0:02:55]} 5. Nc3 {[%clk 0:02:57]}  c6 {[%clk 0:02:55]} 6. Qb3 {[%clk 0:02:56]}  Qc8 {[%clk 0:02:56]} 7. Nf3 {[%clk 0:02:54]}  h6 {[%clk 0:02:56]} 8. h3 {[%clk 0:02:53]}  Be7 {[%clk 0:02:56]} 9. Be2 {[%clk 0:02:52]}  O-O {[%clk 0:02:57]} 10. O-O {[%clk 0:02:52]}  a5 {[%clk 0:02:57]} 11. Rac1 {[%clk 0:02:49]}  Nbd7 {[%clk 0:02:46]} 12. c5 {[%clk 0:02:27]}  Ne4 {[%clk 0:02:40]} 13. Nxe4 {[%clk 0:02:19]}  Bxe4 {[%clk 0:02:41]} 14. Ne5 {[%clk 0:02:07]}  Bd8 {[%clk 0:02:36]} 15. Bd3 {[%clk 0:02:00]}  Bxd3 {[%clk 0:02:34]} 16. Qxd3 {[%clk 0:01:51]}  Bc7 {[%clk 0:02:29]} 17. Nxd7 {[%clk 0:01:46]}  Qxd7 {[%clk 0:02:30]} 18. Bxc7 {[%clk 0:01:46]}  Qxc7 {[%clk 0:02:31]} 19. f4 {[%clk 0:01:40]}  f6 {[%clk 0:02:31]} 20. Rf2 {[%clk 0:01:25]}  Rae8 {[%clk 0:02:30]} 21. Rcf1 {[%clk 0:01:23]}  Rf7 {[%clk 0:02:29]} 22. Qc3 {[%clk 0:01:17]}  Rfe7 {[%clk 0:02:27]} 23. Qc2 {[%clk 0:01:11]}  Qd7 {[%clk 0:02:17]} 24. Qd2 {[%clk 0:01:10]}  Qd8 {[%clk 0:02:16]} 25. Qd3 {[%clk 0:01:05]}  Rf8 {[%clk 0:02:16]} 26. Rf3 {[%clk 0:00:59]}  Rff7 {[%clk 0:02:15]} 27. Qd2 {[%clk 0:00:56]}  Re8 {[%clk 0:02:03]} 28. Qc3 {[%clk 0:00:54]}  Rfe7 {[%clk 0:02:01]} 29. R3f2 {[%clk 0:00:52]}  Qc7 {[%clk 0:01:54]} 30. Qd3 {[%clk 0:00:47]}  b6 {[%clk 0:01:52]} 31. cxb6 {[%clk 0:00:46]}  Qxb6 {[%clk 0:01:53]} 32. Qc3 {[%clk 0:00:31]}  e5 {[%clk 0:01:45]} 33. dxe5 {[%clk 0:00:26]}  fxe5 {[%clk 0:01:46]} 34. f5 {[%clk 0:00:27]}  Rf7 {[%clk 0:01:25]} 35. f6 {[%clk 0:00:25]}  g6 {[%clk 0:01:22]} 36. Kh1 {[%clk 0:00:17]}  Re6 {[%clk 0:01:21]} 37. Qc2 {[%clk 0:00:14]}  Kh7 {[%clk 0:01:21]} 38. e4 {[%clk 0:00:13]}  d4 {[%clk 0:01:14]} 39. Qc4 {[%clk 0:00:13]}  c5 {[%clk 0:01:15]} 40. b3 {[%clk 0:00:11]}  Qd6 {[%clk 0:01:13]} 41. Rf3 {[%clk 0:00:06]}  h5 {[%clk 0:01:12]} 42. R3f2 {[%clk 0:00:05]}  Rfxf6 {[%clk 0:01:08]} 43. Rxf6 {[%clk 0:00:04]}  Rxf6 {[%clk 0:01:09]} 44. Rxf6 {[%clk 0:00:04]}  Qxf6 {[%clk 0:01:10]} 45. Qxc5 {[%clk 0:00:04]}  d3 {[%clk 0:01:00]} 46. Qd5 {[%clk 0:00:04]}  Qf1+ {[%clk 0:00:55]} 47. Kh2 {[%clk 0:00:04]}  Qf4+ {[%clk 0:00:56]} 48. Kh1 {[%clk 0:00:04]}  d2 {[%clk 0:00:56]} 49. Qd7+ {[%clk 0:00:03]}  Kh6 {[%clk 0:00:57]} 50. Qd8 {[%clk 0:00:02]}  Qf1+ {[%clk 0:00:49]} 51. Kh2 {[%clk 0:00:02]}  d1=Q {[%clk 0:00:50]} 52. Qh8+ {[%clk 0:00:02]}  Kg5 {[%clk 0:00:41]} 53. Qxe5+ {[%clk 0:00:03]}  Kh6 {[%clk 0:00:35]} 54. Qh8+ {[%clk 0:00:03]}  Kg5 {[%clk 0:00:36]} 55. Qe5+ {[%clk 0:00:03]}  Qf5 {[%clk 0:00:37]} 56. exf5 {[%clk 0:00:03]}  gxf5 {[%clk 0:00:38]} 57. Qg3+ {[%clk 0:00:03]}  Kh6 {[%clk 0:00:32]} 58. Qf4+ {[%clk 0:00:04]}  Kg6 {[%clk 0:00:32]} 59. Qg3+ {[%clk 0:00:04]}  Kh6 {[%clk 0:00:20]} 60. Qf3 {[%clk 0:00:05]}  Qd6+ {[%clk 0:00:18]} 61. Qg3 {[%clk 0:00:06]}  f4 {[%clk 0:00:17]} 62. Qf3 {[%clk 0:00:06]}  h4 {[%clk 0:00:16]} 63. Kg1 {[%clk 0:00:06]}  Qd4+ {[%clk 0:00:15]} 64. Kh2 {[%clk 0:00:06]}  Qe5 {[%clk 0:00:14]} 65. Kh1 {[%clk 0:00:06]}  Qe1+ {[%clk 0:00:10]} 66. Kh2 {[%clk 0:00:06]}  Qe5 {[%clk 0:00:11]} 67. Kg1 {[%clk 0:00:06]}  Qd4+ {[%clk 0:00:10]} 68. Qf2 {[%clk 0:00:06]}  Qf6 {[%clk 0:00:08]} 69. Kh2 {[%clk 0:00:06]}  Kg5 {[%clk 0:00:08]} 70. Qc5+ {[%clk 0:00:06]}  Kh6 {[%clk 0:00:07]} 71. Qxa5 {[%clk 0:00:06]}  Qd6 {[%clk 0:00:06]} 72. Qc3 {[%clk 0:00:03]}  f3+ {[%clk 0:00:05]} 73. Kg1 {[%clk 0:00:04]}  Qd1+ {[%clk 0:00:06]} 74. Kh2 {[%clk 0:00:03]}  Qd6+ {[%clk 0:00:05]} 75. Kg1 {[%clk 0:00:03]}  Qd1+ {[%clk 0:00:03]} 76. Kh2 {[%clk 0:00:03]}  Qd6+ {[%clk 0:00:04]} 1/2-1/2


[Site "https://www.chess.com"]

[Event "Titled Tuesday Blitz March 14 Late 2023"]
[White "Yuan, Qingyu"]
[Black "Yelisieiev, Yevhenii"]
[WhiteFideId "8609772"]
[BlackFideId "14139642"]
[WhiteElo "2359"]
[BlackElo "2447"]
[Result "1-0"]
[Round "10"]
[TimeControl "180+2"]
[Date "2023.03.14"]
[WhiteClock "0:00:03"]
[BlackClock "0:00:01"]

1. e4 {[%clk 0:03:00]}  d6 {[%clk 0:03:00]} 2. d4 {[%clk 0:03:00]}  Nf6 {[%clk 0:03:01]} 3. Nc3 {[%clk 0:03:00]}  e5 {[%clk 0:03:02]} 4. Nf3 {[%clk 0:02:56]}  Nbd7 {[%clk 0:03:02]} 5. Rg1 {[%clk 0:02:56]}  c6 {[%clk 0:02:59]} 6. g4 {[%clk 0:02:55]}  h6 {[%clk 0:03:00]} 7. Be3 {[%clk 0:02:53]}  Be7 {[%clk 0:02:55]} 8. Qd2 {[%clk 0:02:38]}  b5 {[%clk 0:02:54]} 9. a3 {[%clk 0:02:24]}  a5 {[%clk 0:02:49]} 10. h4 {[%clk 0:02:20]}  exd4 {[%clk 0:02:30]} 11. Nxd4 {[%clk 0:02:11]}  Ne5 {[%clk 0:02:29]} 12. f4 {[%clk 0:01:57]}  Nfxg4 {[%clk 0:02:08]} 13. O-O-O {[%clk 0:01:22]}  b4 {[%clk 0:01:42]} 14. Na4 {[%clk 0:00:44]}  Bxh4 {[%clk 0:00:54]} 15. fxe5 {[%clk 0:00:37]}  Nxe3 {[%clk 0:00:54]} 16. Qxe3 {[%clk 0:00:24]}  Bg5 {[%clk 0:00:38]} 17. Rxg5 {[%clk 0:00:24]}  Qxg5 {[%clk 0:00:38]} 18. Qxg5 {[%clk 0:00:24]}  hxg5 {[%clk 0:00:39]} 19. exd6 {[%clk 0:00:21]}  Bg4 {[%clk 0:00:35]} 20. Re1 {[%clk 0:00:17]}  O-O-O {[%clk 0:00:30]} 21. e5 {[%clk 0:00:16]}  Kb7 {[%clk 0:00:26]} 22. Bg2 {[%clk 0:00:13]}  Bd7 {[%clk 0:00:20]} 23. Nb3 {[%clk 0:00:10]}  Be8 {[%clk 0:00:19]} 24. Nxa5+ {[%clk 0:00:09]}  Ka6 {[%clk 0:00:18]} 25. axb4 {[%clk 0:00:10]}  Kb5 {[%clk 0:00:18]} 26. Nc5 {[%clk 0:00:08]}  Kxb4 {[%clk 0:00:17]} 27. Nab7 {[%clk 0:00:08]}  Ra8 {[%clk 0:00:17]} 28. Kd2 {[%clk 0:00:07]}  Rh2 {[%clk 0:00:16]} 29. Re2 {[%clk 0:00:07]}  Ra7 {[%clk 0:00:15]} 30. c3+ {[%clk 0:00:06]}  Kb5 {[%clk 0:00:15]} 31. Bf1 {[%clk 0:00:06]}  Rxe2+ {[%clk 0:00:13]} 32. Bxe2+ {[%clk 0:00:06]}  Kb6 {[%clk 0:00:14]} 33. Bg4 {[%clk 0:00:03]}  Ra2 {[%clk 0:00:10]} 34. Kc2 {[%clk 0:00:03]}  Ra1 {[%clk 0:00:10]} 35. d7 {[%clk 0:00:03]}  Bxd7 {[%clk 0:00:10]} 36. Bxd7 {[%clk 0:00:04]}  Rg1 {[%clk 0:00:10]} 37. b4 {[%clk 0:00:04]}  Kc7 {[%clk 0:00:10]} 38. Bf5 {[%clk 0:00:04]}  g4 {[%clk 0:00:10]} 39. Nd6 {[%clk 0:00:04]}  g3 {[%clk 0:00:10]} 40. Be4 {[%clk 0:00:04]}  g2 {[%clk 0:00:09]} 41. Bxg2 {[%clk 0:00:03]}  Rxg2+ {[%clk 0:00:10]} 42. Kd3 {[%clk 0:00:03]}  f6 {[%clk 0:00:09]} 43. Nf5 {[%clk 0:00:03]}  fxe5 {[%clk 0:00:08]} 44. Nxg7 {[%clk 0:00:03]}  Rg3+ {[%clk 0:00:07]} 45. Kc4 {[%clk 0:00:03]}  Kb6 {[%clk 0:00:06]} 46. Nf5 {[%clk 0:00:03]}  Rg4+ {[%clk 0:00:06]} 47. Kd3 {[%clk 0:00:03]}  Rf4 {[%clk 0:00:06]} 48. Ne3 {[%clk 0:00:03]}  Rh4 {[%clk 0:00:06]} 49. Nc4+ {[%clk 0:00:04]}  Kb5 {[%clk 0:00:06]} 50. Nxe5 {[%clk 0:00:04]}  Rh3+ {[%clk 0:00:06]} 51. Kd4 {[%clk 0:00:04]}  Rh4+ {[%clk 0:00:06]} 52. Ne4 {[%clk 0:00:05]}  c5+ {[%clk 0:00:05]} 53. bxc5 {[%clk 0:00:05]}  Rh1 {[%clk 0:00:05]} 54. Nd6+ {[%clk 0:00:05]}  Ka6 {[%clk 0:00:05]} 55. Nec4 {[%clk 0:00:05]}  Rh4+ {[%clk 0:00:04]} 56. Kd5 {[%clk 0:00:05]}  Rh5+ {[%clk 0:00:04]} 57. Ne5 {[%clk 0:00:06]}  Rh3 {[%clk 0:00:05]} 58. c4 {[%clk 0:00:06]}  Rh1 {[%clk 0:00:05]} 59. Nf5 {[%clk 0:00:05]}  Rd1+ {[%clk 0:00:04]} 60. Nd4 {[%clk 0:00:06]}  Rh1 {[%clk 0:00:04]} 61. c6 {[%clk 0:00:06]}  Kb6 {[%clk 0:00:04]} 62. Kd6 {[%clk 0:00:05]}  Rh6+ {[%clk 0:00:04]} 63. Ne6 {[%clk 0:00:04]}  Rh1 {[%clk 0:00:03]} 64. c5+ {[%clk 0:00:04]}  Kb5 {[%clk 0:00:03]} 65. Nf4 {[%clk 0:00:04]}  Rh8 {[%clk 0:00:02]} 66. c7 {[%clk 0:00:04]}  Rc8 {[%clk 0:00:02]} 67. Nd5 {[%clk 0:00:04]}  Rh8 {[%clk 0:00:01]} 68. Ng4 {[%clk 0:00:03]}  Rc8 {[%clk 0:00:01]} 69. Ngf6 {[%clk 0:00:03]} 1-0


[Site "https://www.chess.com"]

[Event "Titled Tuesday Blitz March 14 Late 2023"]
[White "Pham, Khoi"]
[Black "Costachi, Mihnea"]
[WhiteFideId "1054988"]
[BlackFideId "1217518"]
[WhiteElo "2581"]
[BlackElo "2456"]
[Result "1-0"]
[Round "10"]
[TimeControl "180+2"]
[Date "2023.03.14"]
[WhiteClock "0:00:19"]
[BlackClock "0:00:07"]

1. e4 {[%clk 0:02:58]}  g6 {[%clk 0:02:59]} 2. d4 {[%clk 0:02:57]}  Bg7 {[%clk 0:03:00]} 3. Nc3 {[%clk 0:02:57]}  d6 {[%clk 0:03:00]} 4. f4 {[%clk 0:02:57]}  Nf6 {[%clk 0:03:00]} 5. Nf3 {[%clk 0:02:54]}  O-O {[%clk 0:03:01]} 6. Bd3 {[%clk 0:02:53]}  c5 {[%clk 0:02:48]} 7. d5 {[%clk 0:02:47]}  b5 {[%clk 0:02:40]} 8. Nxb5 {[%clk 0:02:39]}  c4 {[%clk 0:02:35]} 9. Bxc4 {[%clk 0:02:37]}  Nxe4 {[%clk 0:02:33]} 10. O-O {[%clk 0:02:30]}  Qb6+ {[%clk 0:02:30]} 11. Kh1 {[%clk 0:02:30]}  Ba6 {[%clk 0:02:22]} 12. Qe2 {[%clk 0:02:26]}  Nf6 {[%clk 0:02:04]} 13. Be3 {[%clk 0:02:23]}  Qb7 {[%clk 0:02:00]} 14. Rad1 {[%clk 0:02:12]}  Bxb5 {[%clk 0:01:56]} 15. Bxb5 {[%clk 0:02:07]}  Nxd5 {[%clk 0:01:57]} 16. Bc1 {[%clk 0:02:00]}  Nf6 {[%clk 0:01:45]} 17. Rfe1 {[%clk 0:01:55]}  a6 {[%clk 0:01:44]} 18. Bc4 {[%clk 0:01:54]}  Nc6 {[%clk 0:01:42]} 19. b3 {[%clk 0:01:47]}  Rfd8 {[%clk 0:01:26]} 20. Bxf7+ {[%clk 0:01:34]}  Kh8 {[%clk 0:01:09]} 21. Ng5 {[%clk 0:01:25]}  Rf8 {[%clk 0:01:01]} 22. Be6 {[%clk 0:01:19]}  Nd8 {[%clk 0:00:58]} 23. Bc4 {[%clk 0:01:15]}  h6 {[%clk 0:00:53]} 24. Ne6 {[%clk 0:01:11]}  Nxe6 {[%clk 0:00:53]} 25. Qxe6 {[%clk 0:01:12]}  Rae8 {[%clk 0:00:44]} 26. Bd3 {[%clk 0:01:08]}  Kh7 {[%clk 0:00:42]} 27. Bb2 {[%clk 0:01:01]}  Qd7 {[%clk 0:00:28]} 28. Qe2 {[%clk 0:00:41]}  Qg4 {[%clk 0:00:15]} 29. g3 {[%clk 0:00:32]}  h5 {[%clk 0:00:06]} 30. Bxa6 {[%clk 0:00:29]}  e5 {[%clk 0:00:06]} 31. Qxg4 {[%clk 0:00:25]}  Nxg4 {[%clk 0:00:06]} 32. Rxd6 {[%clk 0:00:25]}  exf4 {[%clk 0:00:04]} 33. Rxe8 {[%clk 0:00:24]}  Rxe8 {[%clk 0:00:05]} 34. Rd7 {[%clk 0:00:23]}  Re1+ {[%clk 0:00:05]} 35. Kg2 {[%clk 0:00:22]}  Ne3+ {[%clk 0:00:05]} 36. Kf3 {[%clk 0:00:21]}  Nf5 {[%clk 0:00:04]} 37. Bxg7 {[%clk 0:00:19]}  Nxg7 {[%clk 0:00:05]} 38. Kxf4 {[%clk 0:00:19]}  Kh6 {[%clk 0:00:05]} 39. a4 {[%clk 0:00:19]}  g5+ {[%clk 0:00:05]} 40. Kf3 {[%clk 0:00:19]}  g4+ {[%clk 0:00:05]} 41. Kf2 {[%clk 0:00:19]}  Rh1 {[%clk 0:00:06]} 42. Bd3 {[%clk 0:00:19]}  Rxh2+ {[%clk 0:00:06]} 43. Ke3 {[%clk 0:00:20]}  h4 {[%clk 0:00:03]} 44. gxh4 {[%clk 0:00:19]}  g3 {[%clk 0:00:04]} 45. Kf3 {[%clk 0:00:19]}  g2 {[%clk 0:00:03]} 46. Kf2 {[%clk 0:00:20]}  Kh5 {[%clk 0:00:03]} 47. Rxg7 {[%clk 0:00:20]}  Rh1 {[%clk 0:00:04]} 48. Rxg2 {[%clk 0:00:20]}  Kxh4 {[%clk 0:00:04]} 49. a5 {[%clk 0:00:20]}  Kh3 {[%clk 0:00:05]} 50. Rg3+ {[%clk 0:00:20]}  Kh2 {[%clk 0:00:05]} 51. Rg2+ {[%clk 0:00:20]}  Kh3 {[%clk 0:00:05]} 52. Bf5+ {[%clk 0:00:20]}  Kh4 {[%clk 0:00:05]} 53. Rg1 {[%clk 0:00:20]}  Rh2+ {[%clk 0:00:05]} 54. Kf3 {[%clk 0:00:20]}  Rd2 {[%clk 0:00:05]} 55. a6 {[%clk 0:00:20]}  Rd5 {[%clk 0:00:05]} 56. Be4 {[%clk 0:00:19]}  Rd7 {[%clk 0:00:05]} 57. Bb7 {[%clk 0:00:19]}  Rf7+ {[%clk 0:00:05]} 58. Ke3 {[%clk 0:00:19]}  Kh3 {[%clk 0:00:06]} 59. a7 {[%clk 0:00:19]}  Rxb7 {[%clk 0:00:06]} 60. a8=Q {[%clk 0:00:19]}  Re7+ {[%clk 0:00:07]} 61. Kd3 {[%clk 0:00:19]}  Rd7+ {[%clk 0:00:07]} 62. Kc3 {[%clk 0:00:20]}  Rh7 {[%clk 0:00:07]} 63. Qh1# {[%clk 0:00:19]} 1-0


[Site "https://www.chess.com"]

[Event "Titled Tuesday Blitz March 14 Late 2023"]
[White "Harvey, Marcus R"]
[Black "Jaskolka, Tomasz"]
[WhiteFideId "400092"]
[BlackFideId "1170791"]
[WhiteElo "2457"]
[BlackElo "2155"]
[Result "0-1"]
[Round "10"]
[TimeControl "180+2"]
[Date "2023.03.14"]
[WhiteClock "0:00:35"]
[BlackClock "0:00:06"]

1. c4 {[%clk 0:02:59]}  c6 {[%clk 0:02:59]} 2. g3 {[%clk 0:02:59]}  d5 {[%clk 0:02:59]} 3. Nf3 {[%clk 0:03:00]}  Nf6 {[%clk 0:02:58]} 4. Bg2 {[%clk 0:03:00]}  Bf5 {[%clk 0:02:53]} 5. cxd5 {[%clk 0:02:58]}  cxd5 {[%clk 0:02:52]} 6. Qb3 {[%clk 0:02:58]}  Qc8 {[%clk 0:02:36]} 7. Nc3 {[%clk 0:02:57]}  e6 {[%clk 0:02:36]} 8. d3 {[%clk 0:02:58]}  Nc6 {[%clk 0:02:35]} 9. Bf4 {[%clk 0:02:58]}  Bc5 {[%clk 0:02:32]} 10. O-O {[%clk 0:02:58]}  O-O {[%clk 0:02:31]} 11. Rac1 {[%clk 0:02:58]}  Qd7 {[%clk 0:02:28]} 12. e4 {[%clk 0:02:45]}  Bg6 {[%clk 0:02:11]} 13. Rfd1 {[%clk 0:02:13]}  Bb6 {[%clk 0:02:07]} 14. Na4 {[%clk 0:02:08]}  Qe7 {[%clk 0:01:06]} 15. Nxb6 {[%clk 0:02:04]}  axb6 {[%clk 0:01:07]} 16. e5 {[%clk 0:02:02]}  Nd7 {[%clk 0:01:07]} 17. d4 {[%clk 0:02:01]}  Rfc8 {[%clk 0:01:03]} 18. a3 {[%clk 0:01:49]}  Na5 {[%clk 0:01:03]} 19. Qb5 {[%clk 0:01:47]}  Rc6 {[%clk 0:01:00]} 20. Nd2 {[%clk 0:01:43]}  Rac8 {[%clk 0:00:57]} 21. Rxc6 {[%clk 0:01:43]}  bxc6 {[%clk 0:00:56]} 22. Qb4 {[%clk 0:01:43]}  c5 {[%clk 0:00:48]} 23. dxc5 {[%clk 0:01:44]}  Qxc5 {[%clk 0:00:49]} 24. Qxc5 {[%clk 0:01:39]}  bxc5 {[%clk 0:00:47]} 25. b4 {[%clk 0:01:39]}  cxb4 {[%clk 0:00:47]} 26. axb4 {[%clk 0:01:39]}  Nc4 {[%clk 0:00:46]} 27. Nxc4 {[%clk 0:01:40]}  Rxc4 {[%clk 0:00:47]} 28. Ra1 {[%clk 0:01:33]}  Rxb4 {[%clk 0:00:42]} 29. Bf1 {[%clk 0:01:34]}  h6 {[%clk 0:00:40]} 30. Ra7 {[%clk 0:01:32]}  Nc5 {[%clk 0:00:34]} 31. f3 {[%clk 0:01:25]}  Bd3 {[%clk 0:00:31]} 32. Be3 {[%clk 0:01:24]}  d4 {[%clk 0:00:23]} 33. Ra8+ {[%clk 0:01:07]}  Kh7 {[%clk 0:00:22]} 34. Rd8 {[%clk 0:00:50]}  dxe3 {[%clk 0:00:12]} 35. Rxd3 {[%clk 0:00:47]}  Nxd3 {[%clk 0:00:10]} 36. Bxd3+ {[%clk 0:00:48]}  g6 {[%clk 0:00:10]} 37. Kf1 {[%clk 0:00:49]}  Rb2 {[%clk 0:00:11]} 38. h4 {[%clk 0:00:47]}  Kg7 {[%clk 0:00:11]} 39. f4 {[%clk 0:00:46]}  Rf2+ {[%clk 0:00:10]} 40. Kg1 {[%clk 0:00:45]}  f6 {[%clk 0:00:10]} 41. exf6+ {[%clk 0:00:44]}  Kxf6 {[%clk 0:00:11]} 42. Be4 {[%clk 0:00:41]}  Rd2 {[%clk 0:00:09]} 43. Kf1 {[%clk 0:00:41]}  Rb2 {[%clk 0:00:08]} 44. Ke1 {[%clk 0:00:41]}  g5 {[%clk 0:00:08]} 45. hxg5+ {[%clk 0:00:41]}  hxg5 {[%clk 0:00:09]} 46. Kf1 {[%clk 0:00:38]}  gxf4 {[%clk 0:00:09]} 47. gxf4 {[%clk 0:00:38]}  Kg7 {[%clk 0:00:09]} 48. Ke1 {[%clk 0:00:39]}  Kh6 {[%clk 0:00:09]} 49. Bf3 {[%clk 0:00:34]}  Kg6 {[%clk 0:00:09]} 50. Bg4 {[%clk 0:00:34]}  Kf6 {[%clk 0:00:08]} 51. Kd1 {[%clk 0:00:35]}  Rb4 {[%clk 0:00:08]} 52. Ke2 {[%clk 0:00:35]}  Rxf4 {[%clk 0:00:08]} 53. Bf3 {[%clk 0:00:35]}  Rxf3 {[%clk 0:00:06]} 54. Kxf3 {[%clk 0:00:35]}  Kf5 {[%clk 0:00:06]} 55. Kxe3 {[%clk 0:00:35]}  Ke5 {[%clk 0:00:07]} 56. Kd3 {[%clk 0:00:35]}  Kf4 {[%clk 0:00:07]} 57. Kd2 {[%clk 0:00:35]}  Kf3 {[%clk 0:00:07]} 58. Ke1 {[%clk 0:00:35]}  Ke3 {[%clk 0:00:07]} 59. Kf1 {[%clk 0:00:35]}  e5 {[%clk 0:00:05]} 60. Ke1 {[%clk 0:00:36]}  e4 {[%clk 0:00:06]} 61. Kd1 {[%clk 0:00:35]}  Kf2 {[%clk 0:00:06]} 0-1


[Site "https://www.chess.com"]

[Event "Titled Tuesday Blitz March 14 Late 2023"]
[White "Mazurkiewicz, Michal"]
[Black "Diaz Perez, Michel Alejandro"]
[WhiteFideId "1124943"]
[BlackFideId "3517179"]
[WhiteElo "2054"]
[BlackElo "2333"]
[Result "0-1"]
[Round "10"]
[TimeControl "180+2"]
[Date "2023.03.14"]
[WhiteClock "0:00:03"]
[BlackClock "0:00:32"]

1. e4 {[%clk 0:03:00]}  d5 {[%clk 0:02:59]} 2. exd5 {[%clk 0:03:00]}  Nf6 {[%clk 0:03:00]} 3. Nf3 {[%clk 0:03:00]}  Nxd5 {[%clk 0:02:58]} 4. d4 {[%clk 0:03:00]}  Bg4 {[%clk 0:02:57]} 5. Be2 {[%clk 0:03:00]}  e6 {[%clk 0:02:57]} 6. O-O {[%clk 0:03:00]}  Be7 {[%clk 0:02:57]} 7. h3 {[%clk 0:02:54]}  Bh5 {[%clk 0:02:56]} 8. c4 {[%clk 0:02:53]}  Nb6 {[%clk 0:02:56]} 9. Be3 {[%clk 0:02:53]}  c6 {[%clk 0:02:46]} 10. Qb3 {[%clk 0:02:47]}  Qc7 {[%clk 0:02:30]} 11. a4 {[%clk 0:02:44]}  O-O {[%clk 0:02:23]} 12. a5 {[%clk 0:02:43]}  N6d7 {[%clk 0:02:23]} 13. Nc3 {[%clk 0:02:43]}  Nf6 {[%clk 0:02:20]} 14. g4 {[%clk 0:02:24]}  Bg6 {[%clk 0:02:18]} 15. Ne5 {[%clk 0:02:25]}  Nbd7 {[%clk 0:02:17]} 16. Nxg6 {[%clk 0:02:24]}  hxg6 {[%clk 0:02:18]} 17. Bf3 {[%clk 0:02:16]}  Bd6 {[%clk 0:02:11]} 18. Ne2 {[%clk 0:02:06]}  e5 {[%clk 0:02:08]} 19. d5 {[%clk 0:01:38]}  e4 {[%clk 0:02:01]} 20. Bg2 {[%clk 0:01:37]}  c5 {[%clk 0:02:02]} 21. Nc3 {[%clk 0:01:30]}  a6 {[%clk 0:01:57]} 22. Nxe4 {[%clk 0:01:28]}  Nxe4 {[%clk 0:01:55]} 23. Bxe4 {[%clk 0:01:29]}  Nf6 {[%clk 0:01:56]} 24. Bf3 {[%clk 0:01:27]}  Rae8 {[%clk 0:01:55]} 25. Qd3 {[%clk 0:00:29]}  Nd7 {[%clk 0:01:39]} 26. Bg2 {[%clk 0:00:27]}  Re7 {[%clk 0:01:37]} 27. Rfe1 {[%clk 0:00:26]}  Rfe8 {[%clk 0:01:36]} 28. Bd2 {[%clk 0:00:27]}  Ne5 {[%clk 0:01:23]} 29. Qc2 {[%clk 0:00:27]}  Nd7 {[%clk 0:01:11]} 30. Rxe7 {[%clk 0:00:26]}  Rxe7 {[%clk 0:01:12]} 31. Re1 {[%clk 0:00:27]}  Rxe1+ {[%clk 0:01:12]} 32. Bxe1 {[%clk 0:00:27]}  Bh2+ {[%clk 0:01:11]} 33. Kh1 {[%clk 0:00:24]}  Be5 {[%clk 0:01:11]} 34. b3 {[%clk 0:00:19]}  Qd6 {[%clk 0:01:09]} 35. Bc3 {[%clk 0:00:15]}  Bxc3 {[%clk 0:01:05]} 36. Qxc3 {[%clk 0:00:15]}  Ne5 {[%clk 0:01:04]} 37. Qg3 {[%clk 0:00:16]}  g5 {[%clk 0:01:02]} 38. Qe3 {[%clk 0:00:15]}  f6 {[%clk 0:01:02]} 39. f4 {[%clk 0:00:15]}  gxf4 {[%clk 0:00:59]} 40. Qxf4 {[%clk 0:00:15]}  Nf7 {[%clk 0:01:00]} 41. Qe3 {[%clk 0:00:14]}  Kf8 {[%clk 0:00:59]} 42. b4 {[%clk 0:00:09]}  cxb4 {[%clk 0:00:50]} 43. c5 {[%clk 0:00:10]}  Qe5 {[%clk 0:00:42]} 44. Qg1 {[%clk 0:00:10]}  b3 {[%clk 0:00:40]} 45. d6 {[%clk 0:00:10]}  Nd8 {[%clk 0:00:37]} 46. Qd1 {[%clk 0:00:03]}  b2 {[%clk 0:00:36]} 47. Bxb7 {[%clk 0:00:03]}  Nxb7 {[%clk 0:00:31]} 48. c6 {[%clk 0:00:03]}  Qxd6 {[%clk 0:00:32]} 0-1


[Site "https://www.chess.com"]

[Event "Titled Tuesday Blitz March 14 Late 2023"]
[White "Escalona Landi, Samid Eduardo"]
[Black "Kurtz, Eric M"]
[WhiteFideId "3937437"]
[BlackFideId "30939763"]
[WhiteElo "2207"]
[BlackElo "2582"]
[Result "0-1"]
[Round "10"]
[TimeControl "180+2"]
[Date "2023.03.14"]
[WhiteClock "0:00:02"]
[BlackClock "0:00:44"]

1. e4 {[%clk 0:03:00]}  d6 {[%clk 0:02:58]} 2. d4 {[%clk 0:02:55]}  Nf6 {[%clk 0:02:57]} 3. Nc3 {[%clk 0:02:55]}  g6 {[%clk 0:02:57]} 4. Nf3 {[%clk 0:02:55]}  Bg7 {[%clk 0:02:57]} 5. Be2 {[%clk 0:02:56]}  O-O {[%clk 0:02:57]} 6. O-O {[%clk 0:02:56]}  c6 {[%clk 0:02:57]} 7. a4 {[%clk 0:02:56]}  Qc7 {[%clk 0:02:57]} 8. a5 {[%clk 0:02:56]}  Nbd7 {[%clk 0:02:58]} 9. h3 {[%clk 0:02:56]}  Rb8 {[%clk 0:02:58]} 10. Be3 {[%clk 0:02:52]}  b5 {[%clk 0:02:59]} 11. axb6 {[%clk 0:02:51]}  axb6 {[%clk 0:02:59]} 12. d5 {[%clk 0:02:39]}  b5 {[%clk 0:02:59]} 13. dxc6 {[%clk 0:02:38]}  Qxc6 {[%clk 0:02:57]} 14. Nd5 {[%clk 0:02:39]}  Nxd5 {[%clk 0:02:52]} 15. exd5 {[%clk 0:02:40]}  Qc7 {[%clk 0:02:52]} 16. Nd4 {[%clk 0:02:33]}  Bxd4 {[%clk 0:02:24]} 17. Bxd4 {[%clk 0:02:29]}  Nf6 {[%clk 0:02:19]} 18. Bf3 {[%clk 0:02:25]}  Bf5 {[%clk 0:02:17]} 19. c3 {[%clk 0:02:23]}  b4 {[%clk 0:02:14]} 20. Re1 {[%clk 0:02:16]}  bxc3 {[%clk 0:02:05]} 21. bxc3 {[%clk 0:02:17]}  Ra8 {[%clk 0:02:04]} 22. Qd2 {[%clk 0:02:09]}  Rfb8 {[%clk 0:02:00]} 23. Rxa8 {[%clk 0:02:05]}  Rxa8 {[%clk 0:02:00]} 24. Qg5 {[%clk 0:02:05]}  Qd8 {[%clk 0:01:51]} 25. Qe3 {[%clk 0:01:43]}  Kf8 {[%clk 0:01:41]} 26. Qh6+ {[%clk 0:01:43]}  Kg8 {[%clk 0:01:41]} 27. g4 {[%clk 0:01:43]}  Bd3 {[%clk 0:01:34]} 28. Qe3 {[%clk 0:01:32]}  Bc4 {[%clk 0:01:31]} 29. Qh6 {[%clk 0:00:46]}  Qf8 {[%clk 0:01:26]} 30. Qg5 {[%clk 0:00:46]}  Qd8 {[%clk 0:01:25]} 31. Rd1 {[%clk 0:00:28]}  Bb3 {[%clk 0:01:19]} 32. Rd2 {[%clk 0:00:27]}  Ra5 {[%clk 0:01:09]} 33. Be3 {[%clk 0:00:20]}  Qc7 {[%clk 0:01:04]} 34. Rd3 {[%clk 0:00:03]}  Bc4 {[%clk 0:01:03]} 35. Rd2 {[%clk 0:00:03]}  Bb3 {[%clk 0:01:01]} 36. Rd3 {[%clk 0:00:03]}  Bc2 {[%clk 0:01:00]} 37. Rd2 {[%clk 0:00:03]}  Qxc3 {[%clk 0:00:59]} 38. Kh2 {[%clk 0:00:02]}  Be4 {[%clk 0:00:44]} 39. Bd4 {[%clk 0:00:02]}  Qxf3 {[%clk 0:00:44]} 0-1


[Site "https://www.chess.com"]